bitfinex/quotes_BTCUSD_20250417
["timestamp","ask_amount","ask_price","bid_price","bid_amount"]
[1744894013478,0.48036151,84759.0,84758.0,0.00724746]
[1744894013679,0.48136151,84759.0,84758.0,0.00724746]
[1744894013831,0.49314388,84759.0,84758.0,0.00724746]
[1744894014032,0.2360244,84737.0,84732.0,0.08848123]
[1744894014239,0.2845244,84737.0,84736.0,0.00097798]
[1744894015035,0.2845244,84737.0,84736.0,0.00130968]
[1744894015232,0.2855244,84737.0,84736.0,0.00130968]
[1744894016855,0.2875244,84737.0,84736.0,0.00130968]
[1744894018044,0.41697231,84737.0,84736.0,0.00097798]
[1744894021736,0.41797231,84737.0,84736.0,0.00097798]
[1744894022504,0.004,84737.0,84736.0,0.23700517]
[1744894022725,0.004,84737.0,84736.0,0.63947772]
[1744894022931,0.004,84737.0,84736.0,0.75892563]
[1744894023143,0.004,84737.0,84736.0,0.38890968]
[1744894023353,0.004,84737.0,84736.0,0.34197798]
[1744894023525,0.2380244,84737.0,84736.0,0.00230968]
[1744894023733,0.002,84737.0,84736.0,0.23833687]
[1744894023936,0.002,84737.0,84736.0,0.23933687]
[1744894024238,0.001,84737.0,84736.0,0.23933687]
[1744894024432,0.001,84737.0,84736.0,0.00230968]
[1744894024639,0.001,84737.0,84736.0,0.00430968]
[1744894024797,0.001,84737.0,84736.0,0.00230968]
[1744894025813,0.002,84737.0,84736.0,0.00230968]
[1744894026427,0.003,84737.0,84736.0,0.00230968]
[1744894029829,0.2390244,84737.0,84736.0,0.00230968]
[1744894032448,0.41597231,84737.0,84736.0,0.00197798]
[1744894033368,0.41497231,84737.0,84736.0,0.00197798]
[1744894033802,0.41697231,84737.0,84736.0,0.00197798]
[1744894034220,0.41497231,84737.0,84736.0,0.00197798]
[1744894034562,0.41597231,84737.0,84736.0,0.00197798]
[1744894034970,0.37047231,84737.0,84736.0,0.00197798]
[1744894035598,0.36047231,84737.0,84736.0,0.00197798]
[1744894035801,0.2410244,84737.0,84736.0,0.00197798]
[1744894045673,0.36047231,84737.0,84736.0,0.00197798]
[1744894048093,0.37047231,84737.0,84736.0,0.00197798]
[1744894048295,0.41617231,84737.0,84736.0,0.00197798]
[1744894048464,0.41698937,84737.0,84736.0,0.00018294]
[1744894052949,0.41798937,84737.0,84736.0,0.00018294]
[1744894069633,0.37228937,84737.0,84736.0,0.00018294]
[1744894071475,0.23602719,84736.0,84735.0,0.0008428]
[1744894071689,0.39553885,84736.0,84735.0,0.0008428]
[1744894072843,0.39753885,84736.0,84735.0,0.0008428]
[1744894073051,0.39953885,84736.0,84735.0,0.0008428]
[1744894081754,0.40035591,84736.0,84735.0,0.0008428]
[1744894084988,0.23605504,84726.0,84725.0,0.0458173]
[1744894085413,0.23605504,84726.0,84725.0,0.0468173]
[1744894086217,0.23605504,84726.0,84725.0,0.0478173]
[1744894086892,0.23605277,84727.0,84725.0,0.0478173]
[1744894087215,0.23605504,84726.0,84725.0,0.0478173]
[1744894087793,0.23605312,84727.0,84725.0,0.28387513]
[1744894088021,0.23605504,84726.0,84725.0,0.0478173]
[1744894088498,0.23605312,84727.0,84725.0,0.28387513]
[1744894088701,0.23604962,84728.0,84725.0,0.28387495]
[1744894088904,0.00088081,84736.0,84735.0,0.28262997]
[1744894089503,0.00088081,84736.0,84735.0,0.33172997]
[1744894090464,0.00288081,84736.0,84735.0,0.33172997]
[1744894092166,0.00488081,84736.0,84735.0,0.33172997]
[1744894092384,0.00488081,84736.0,84735.0,0.0957]
[1744894092976,0.01180191,84732.0,84729.0,0.23604655]
[1744894093394,0.24784055,84732.0,84729.0,0.23604433]
[1744894093636,0.24784055,84732.0,84730.0,0.23604313]
[1744894095014,0.24784316,84731.0,84728.0,0.23604401]
[1744894095608,0.01180205,84731.0,84729.0,0.23604576]
[1744894096071,0.24784556,84731.0,84728.0,0.23604401]
[1744894096561,0.01180163,84734.0,84727.0,0.05840261]
[1744894096860,0.23603276,84734.0,84731.0,0.23603893]
[1744894097003,0.24783203,84735.0,84732.0,0.23603666]
[1744894097619,0.01268216,84736.0,84733.0,0.23603425]
[1744894097823,0.24871055,84736.0,84733.0,0.23603425]
[1744894098065,0.01180163,84734.0,84732.0,0.2360382]
[1744894098268,0.24783469,84734.0,84732.0,0.2360382]
[1744894098474,0.24783212,84735.0,84732.0,0.2360382]
[1744894098668,0.24783212,84735.0,84733.0,0.23603492]
[1744894099282,0.24783212,84735.0,84732.0,0.2360382]
[1744894099767,0.24883212,84735.0,84732.0,0.2360382]
[1744894099975,0.24783212,84735.0,84732.0,0.2360382]
[1744894100209,0.001,84734.0,84732.0,0.2360382]
[1744894100530,0.001,84734.0,84733.0,0.23603554]
[1744894101318,0.23703276,84734.0,84732.0,0.2360382]
[1744894101517,0.23603276,84734.0,84732.0,0.2360382]
[1744894102384,0.23703276,84734.0,84732.0,0.2360382]
[1744894103018,0.23803276,84734.0,84732.0,0.2360382]
[1744894103494,0.23603554,84733.0,84730.0,0.23604354]
[1744894103805,0.01180177,84733.0,84731.0,0.2360402]
[1744894104420,0.002,84734.0,84732.0,0.23603833]
[1744894104575,0.001,84734.0,84732.0,0.23603833]
[1744894104903,0.001,84733.0,84732.0,0.23603833]
[1744894105068,0.001,84733.0,84728.0,0.37048152]
[1744894105275,0.01280177,84733.0,84729.0,0.23604447]
[1744894105484,0.01180191,84732.0,84729.0,0.23604443]
[1744894105710,0.24783775,84733.0,84730.0,0.23604192]
[1744894106861,0.24783459,84734.0,84731.0,0.23604015]
[1744894107062,0.23603616,84733.0,84731.0,0.23604015]
[1744894107403,0.01180177,84733.0,84728.0,0.3704892]
[1744894107587,0.23603833,84732.0,84729.0,0.23604559]
[1744894108026,0.24784024,84732.0,84729.0,0.23604559]
[1744894108253,0.23604261,84731.0,84728.0,0.37048869]
[1744894108449,0.24784466,84731.0,84728.0,0.37048869]
[1744894109412,0.24784466,84731.0,84729.0,0.23604665]
[1744894109613,0.24784466,84731.0,84728.0,0.13444]
[1744894109819,0.23604602,84730.0,84728.0,0.13444]
[1744894110022,0.24784383,84731.0,84728.0,0.37048725]
[1744894111107,0.24784383,84731.0,84729.0,0.23604649]
[1744894111704,0.00081706,84731.0,84730.0,0.2360439]
[1744894112281,0.00081706,84731.0,84729.0,0.23604649]
[1744894112846,0.24866135,84731.0,84728.0,0.37048725]
[1744894113256,0.01261911,84731.0,84728.0,0.13444]
[1744894114050,0.24866068,84731.0,84728.0,0.23604733]
[1744894114248,0.01180219,84730.0,84727.0,0.2360469]
[1744894114502,0.24785087,84730.0,84728.0,0.23604894]
[1744894114664,0.24785087,84730.0,84727.0,0.2360469]
[1744894114665,0.01180247,84728.0,84725.0,0.2370554]
[1744894114870,0.01180247,84728.0,84726.0,0.23605309]
[1744894115228,0.01261911,84731.0,84728.0,0.23604947]
[1744894115650,0.24866155,84731.0,84729.0,0.23604602]
[1744894115879,0.00081706,84731.0,84730.0,0.2360439]
[1744894116329,0.00081706,84731.0,84729.0,0.23604602]
[1744894116775,0.00081706,84731.0,84730.0,0.2360439]
[1744894117233,0.00181706,84731.0,84728.0,0.23604886]
[1744894117672,0.00181706,84731.0,84730.0,0.2360439]
[1744894117906,0.00181706,84731.0,84729.0,0.23604669]
[1744894118132,0.01261911,84731.0,84728.0,0.23604923]
[1744894118374,0.01180219,84730.0,84728.0,0.23604875]
[1744894119370,0.01261911,84731.0,84729.0,0.23604669]
[1744894119912,0.00081706,84731.0,84729.0,0.23604669]
[1744894120075,0.00081706,84731.0,84730.0,0.2360439]
[1744894120846,0.00081706,84731.0,84729.0,0.23604669]
[1744894121084,0.00081706,84731.0,84730.0,0.2360439]
[1744894121307,0.00181706,84731.0,84730.0,0.2360439]
[1744894121772,0.00181706,84731.0,84729.0,0.23604669]
[1744894122226,0.24966154,84731.0,84728.0,0.23604412]
[1744894122455,0.24966154,84731.0,84729.0,0.23604599]
[1744894122661,0.00181706,84731.0,84730.0,0.2360439]
[1744894123043,0.00081706,84731.0,84730.0,0.2360439]
[1744894124138,0.00181706,84731.0,84730.0,0.2360439]
[1744894136704,0.01361911,84731.0,84726.0,0.1344]
[1744894136908,0.00181706,84731.0,84728.0,0.23604947]
[1744894137111,0.00181706,84731.0,84726.0,0.38225501]
[1744894137311,0.00181706,84731.0,84730.0,0.2360439]
[1744894138973,0.00081706,84731.0,84730.0,0.2360439]
[1744894140099,0.00181706,84731.0,84730.0,0.2360439]
[1744894144272,0.00181706,84731.0,84729.0,0.23604619]
[1744894145429,0.00081706,84731.0,84729.0,0.23604619]
[1744894146020,0.00081706,84731.0,84730.0,0.2360439]
[1744894146360,0.01180233,84729.0,84727.0,0.23605003]
[1744894146521,0.24784843,84730.0,84728.0,0.23604947]
[1744894146839,0.01180233,84729.0,84727.0,0.23605226]
[1744894147146,0.24784948,84729.0,84726.0,0.23605504]
[1744894147439,0.01180233,84729.0,84727.0,0.23605218]
[1744894147858,0.2496656,84731.0,84728.0,0.23604947]
[1744894148205,0.00181706,84731.0,84729.0,0.23604423]
[1744894148561,0.00081706,84731.0,84729.0,0.23604423]
[1744894153730,0.00081706,84731.0,84730.0,0.2360439]
[1744894154898,0.00081706,84731.0,84727.0,0.29565479]
[1744894155101,0.00081706,84731.0,84730.0,0.2360439]
[1744894155701,0.00181706,84731.0,84730.0,0.2360439]
[1744894161816,0.00181706,84731.0,84730.0,0.2854439]
[1744894162407,0.00181706,84731.0,84730.0,0.2370439]
[1744894162784,0.00181706,84731.0,84730.0,0.3714039]
[1744894164239,0.00181706,84731.0,84730.0,0.2370439]
[1744894164439,0.23785817,84731.0,84730.0,0.001]
[1744894164639,0.00181706,84731.0,84730.0,0.001]
[1744894164849,0.00181706,84731.0,84730.0,0.2370439]
[1744894168471,0.00181706,84731.0,84730.0,0.2830439]
[1744894169911,0.00181706,84731.0,84730.0,0.2370439]
[1744894170122,0.00181706,84731.0,84730.0,0.13536]
[1744894170474,0.00181706,84731.0,84730.0,0.3714039]
[1744894171742,0.00263412,84731.0,84730.0,0.3714039]
[1744894172136,0.00263412,84731.0,84730.0,0.13536]
[1744894172640,0.00263412,84731.0,84730.0,0.3714039]
[1744894175116,0.00263412,84731.0,84730.0,0.3714039]
[1744894178427,0.23867523,84731.0,84730.0,0.13536]
[1744894178601,0.00263412,84731.0,84730.0,0.3714039]
[1744894181489,0.23867523,84731.0,84730.0,0.13536]
[1744894186359,0.23867523,84731.0,84730.0,0.001]
[1744894191304,0.24785269,84728.0,84725.0,0.23605695]
[1744894191744,0.24785719,84727.0,84724.0,0.37033894]
[1744894192078,0.01180261,84727.0,84725.0,0.23605568]
[1744894192273,0.01180261,84727.0,84725.0,0.23705568]
[1744894192597,0.01180261,84727.0,84725.0,0.23605568]
[1744894192990,0.24785547,84727.0,84725.0,0.2360575]
[1744894193734,0.24784956,84729.0,84726.0,0.23605305]
[1744894193890,0.23605044,84728.0,84726.0,0.23605305]
[1744894194849,0.24785291,84728.0,84725.0,0.23705702]
[1744894195194,0.23604954,84728.0,84726.0,0.23605439]
[1744894195818,0.23604954,84728.0,84726.0,0.23705439]
[1744894199002,0.24784906,84729.0,84726.0,0.23705504]
[1744894199594,0.23604976,84728.0,84726.0,0.23705504]
[1744894200329,0.23606062,84724.0,84723.0,0.13428]
[1744894200523,0.23605083,84728.0,84726.0,0.23605465]
[1744894200746,0.24785413,84729.0,84726.0,0.23705465]
[1744894200865,0.24785292,84728.0,84725.0,0.23605783]
[1744894201430,0.24785292,84728.0,84726.0,0.001]
[1744894201632,0.24866998,84728.0,84725.0,0.23605783]
[1744894201832,0.24866998,84728.0,84726.0,0.001]
[1744894202269,0.24866998,84728.0,84726.0,0.23605482]
[1744894202387,0.24785779,84726.0,84723.0,0.37034157]
[1744894202587,0.01180261,84727.0,84725.0,0.23605783]
[1744894202791,0.01180261,84727.0,84725.0,0.23605645]
[1744894203219,0.24785636,84727.0,84724.0,0.23605958]
[1744894203451,0.01180261,84727.0,84724.0,0.23605958]
[1744894203658,0.23605504,84726.0,84725.0,0.001]
[1744894203857,0.23606062,84724.0,84723.0,0.13428]
[1744894205391,0.23606062,84724.0,84723.0,0.13628]
[1744894205812,0.23606062,84724.0,84723.0,0.13728]
[1744894207516,0.24785779,84726.0,84723.0,0.13728]
[1744894208224,0.24785779,84726.0,84723.0,0.37334288]
[1744894208652,0.23605881,84725.0,84723.0,0.13728]
[1744894209030,0.01180275,84726.0,84723.0,0.37234199]
[1744894209612,0.24785815,84726.0,84723.0,0.37234199]
[1744894210276,0.23606039,84725.0,84723.0,0.13428]
[1744894210470,0.23606039,84725.0,84723.0,0.13528]
[1744894210674,0.24785833,84726.0,84723.0,0.37334282]
[1744894211167,0.24785833,84726.0,84723.0,0.37234282]
[1744894211647,0.24785833,84726.0,84723.0,0.37134282]
[1744894211845,0.24785833,84726.0,84723.0,0.37334282]
[1744894212026,0.24785833,84726.0,84723.0,0.37034282]
[1744894212433,0.23605857,84725.0,84723.0,0.13528]
[1744894212629,0.01180275,84726.0,84723.0,0.13528]
[1744894213016,0.01180275,84726.0,84724.0,0.23605997]
[1744894213239,0.2478578,84726.0,84723.0,0.37134115]
[1744894213412,0.2478578,84726.0,84723.0,0.37334115]
[1744894213617,0.24785553,84727.0,84724.0,0.23606037]
[1744894215049,0.24785553,84727.0,84724.0,0.23806037]
[1744894215253,0.23605783,84725.0,84724.0,0.002]
[1744894215455,0.2360572,84726.0,84724.0,0.002]
[1744894216069,0.23605783,84725.0,84724.0,0.002]
[1744894217184,0.24786072,84725.0,84722.0,0.3821094]
[1744894217477,0.24786072,84725.0,84724.0,0.002]
[1744894217713,0.01280289,84725.0,84716.0,0.01157739]
[1744894217906,0.23609405,84712.0,84711.0,0.002843]
[1744894220134,0.23609405,84712.0,84711.0,0.007843]
[1744894220331,0.23609405,84712.0,84711.0,0.009843]
[1744894220556,0.23609405,84712.0,84711.0,0.004843]
[1744894220756,0.23609405,84712.0,84711.0,0.006843]
[1744894221057,0.23609405,84712.0,84711.0,0.008843]
[1744894224199,0.23609127,84713.0,84711.0,0.008843]
[1744894224994,0.23609405,84712.0,84711.0,0.004843]
[1744894225191,0.23609405,84712.0,84711.0,0.002843]
[1744894225398,0.0451,84724.0,84721.0,0.23606813]
[1744894225614,0.24786398,84724.0,84721.0,0.23606813]
[1744894225918,0.24786738,84723.0,84720.0,0.23607119]
[1744894226116,0.23606642,84722.0,84720.0,0.23607119]
[1744894226415,0.0118033,84722.0,84720.0,0.23607175]
[1744894226797,0.001,84725.0,84723.0,0.23606303]
[1744894227005,0.001,84725.0,84724.0,0.23606062]
[1744894228054,0.002,84725.0,84724.0,0.23606062]
[1744894228821,0.002,84725.0,84720.0,0.01180358]
[1744894228822,0.23606377,84723.0,84720.0,0.23607139]
[1744894229159,0.001,84725.0,84722.0,0.23606384]
[1744894229730,0.01280289,84725.0,84720.0,0.01180358]
[1744894229938,0.001,84725.0,84723.0,0.23606099]
[1744894230524,0.002,84725.0,84723.0,0.23606099]
[1744894230947,0.002,84725.0,84724.0,0.23606062]
[1744894231146,0.001,84725.0,84724.0,0.23606062]
[1744894231774,0.00181706,84725.0,84724.0,0.23606062]
[1744894231975,0.00281706,84725.0,84724.0,0.23606062]
[1744894232176,0.00281706,84725.0,84723.0,0.23606099]
[1744894232383,0.00181706,84725.0,84723.0,0.23606099]
[1744894234069,0.00181706,84725.0,84724.0,0.23606062]
[1744894234232,0.23887489,84725.0,84723.0,0.23606099]
[1744894234591,0.00281706,84725.0,84723.0,0.23606099]
[1744894234767,0.23887535,84725.0,84723.0,0.23606099]
[1744894234971,0.24967824,84725.0,84722.0,0.23606579]
[1744894235192,0.25067824,84725.0,84722.0,0.23606579]
[1744894235417,0.25067824,84725.0,84723.0,0.23606316]
[1744894236078,0.25067824,84725.0,84722.0,0.23606579]
[1744894236861,0.01461995,84725.0,84723.0,0.23606333]
[1744894237064,0.00181706,84725.0,84724.0,0.23606062]
[1744894237468,0.00181706,84725.0,84724.0,0.28586062]
[1744894238141,0.00281706,84725.0,84724.0,0.28586062]
[1744894238575,0.00281706,84725.0,84724.0,0.28686062]
[1744894238773,0.00281706,84725.0,84724.0,0.42110062]
[1744894239184,0.00181706,84725.0,84724.0,0.42110062]
[1744894239791,0.00181706,84725.0,84724.0,0.46720062]
[1744894240193,0.00181706,84725.0,84724.0,0.46820062]
[1744894240625,0.00281706,84725.0,84724.0,0.46820062]
[1744894241176,0.00181706,84725.0,84724.0,0.46820062]
[1744894247222,0.00181706,84725.0,84724.0,0.37230062]
[1744894250217,0.23787489,84725.0,84724.0,0.13624]
[1744894250385,0.00181706,84725.0,84724.0,0.37230062]
[1744894250591,0.23887489,84725.0,84724.0,0.002]
[1744894251415,0.23605783,84725.0,84724.0,0.001]
[1744894251602,0.23787489,84725.0,84724.0,0.001]
[1744894256316,0.00181706,84725.0,84724.0,0.23706062]
[1744894261737,0.01180191,84732.0,84730.0,0.23604227]
[1744894262165,0.24865577,84733.0,84730.0,0.23604227]
[1744894263133,0.23603912,84732.0,84730.0,0.23604227]
[1744894263661,0.24784103,84732.0,84729.0,0.2360462]
[1744894263959,0.24984103,84732.0,84729.0,0.2360462]
[1744894264103,0.24784381,84731.0,84728.0,0.23604915]
[1744894265180,0.01180247,84728.0,84725.0,0.23605528]
[1744894265378,0.01180247,84728.0,84726.0,0.23605388]
[1744894265582,0.24785284,84728.0,84726.0,0.23605297]
[1744894265985,0.24784676,84730.0,84727.0,0.23605025]
[1744894266185,0.24784854,84730.0,84725.0,0.23605528]
[1744894266387,0.24785393,84728.0,84725.0,0.23605528]
[1744894266949,0.24785393,84728.0,84726.0,0.2360544]
[1744894267356,0.24785393,84728.0,84725.0,0.23605528]
[1744894267540,0.24785393,84728.0,84726.0,0.23605473]
[1744894268104,0.24885393,84728.0,84725.0,0.23605528]
[1744894268626,0.24785393,84728.0,84725.0,0.23605528]
[1744894268933,0.24785393,84728.0,84726.0,0.23605344]
[1744894268934,0.01180247,84728.0,84726.0,0.23605344]
[1744894269233,0.24785248,84728.0,84726.0,0.23605344]
[1744894269649,0.01180205,84731.0,84726.0,0.01180275]
[1744894269824,0.24784965,84729.0,84723.0,0.01180317]
[1744894270032,0.01180233,84729.0,84727.0,0.23605192]
[1744894270217,0.01280247,84728.0,84726.0,0.23605471]
[1744894270628,0.24784954,84729.0,84726.0,0.23605471]
[1744894270875,0.01180219,84730.0,84727.0,0.23604996]
[1744894271175,0.23604674,84729.0,84727.0,0.23604996]
[1744894271362,0.01180219,84730.0,84726.0,0.23605466]
[1744894271537,0.01180233,84729.0,84726.0,0.23605466]
[1744894271981,0.01280233,84729.0,84726.0,0.23605466]
[1744894272975,0.01280233,84729.0,84727.0,0.23605009]
[1744894273170,0.01180233,84729.0,84727.0,0.23605009]
[1744894273793,0.001,84730.0,84729.0,0.23604669]
[1744894273997,0.01180219,84730.0,84728.0,0.23604752]
[1744894274410,0.24784396,84731.0,84729.0,0.23604661]
[1744894274615,0.01180191,84732.0,84729.0,0.23604603]
[1744894274813,0.01180191,84732.0,84730.0,0.02204516]
[1744894275361,0.23604126,84731.0,84730.0,0.02204516]
[1744894276505,0.24784242,84732.0,84730.0,0.02204516]
[1744894276707,0.24784316,84731.0,84728.0,0.23604861]
[1744894276917,0.001,84730.0,84729.0,0.23604638]
[1744894277585,0.001,84731.0,84729.0,0.25809425]
[1744894278162,0.001,84731.0,84730.0,0.02204787]
[1744894278576,0.24784242,84732.0,84730.0,0.02204787]
[1744894279092,0.24784242,84732.0,84731.0,0.02204787]
[1744894279234,0.00081706,84733.0,84731.0,0.02204787]
[1744894279447,0.00081706,84733.0,84732.0,0.9418475]
[1744894279645,1e-08,84738.0,84737.0,0.59056525]
[1744894279877,0.0004216,84767.0,84758.0,0.24776323]
[1744894280045,0.00087235,84767.0,84760.0,0.24775836]
[1744894280246,0.00087235,84767.0,84765.0,0.23594575]
[1744894280456,0.00087235,84767.0,84766.0,0.37010365]
[1744894280885,0.00087235,84767.0,84766.0,0.38184238]
[1744894281083,0.00087235,84767.0,84766.0,0.72184238]
[1744894281277,0.00087235,84767.0,84766.0,0.73638323]
[1744894281485,0.00087235,84767.0,84766.0,0.78578323]
[1744894281692,0.00387235,84767.0,84766.0,0.90523114]
[1744894283292,0.00087235,84767.0,84766.0,0.90523114]
[1744894283428,0.00087235,84767.0,84766.0,0.90623114]
[1744894283626,0.00187235,84767.0,84766.0,0.90623114]
[1744894284170,0.00087235,84767.0,84766.0,0.90623114]
[1744894285214,1e-08,84767.0,84766.0,0.90623114]
[1744894285413,1e-08,84767.0,84766.0,0.95213114]
[1744894285791,0.0004216,84786.0,84785.0,0.23589078]
[1744894285991,0.00047479,84786.0,84785.0,0.38691023]
[1744894286191,0.00047479,84786.0,84785.0,0.38455163]
[1744894286522,0.00047479,84786.0,84785.0,0.72455163]
[1744894286675,0.00047479,84786.0,84785.0,0.93619954]
[1744894287104,0.00947479,84786.0,84785.0,0.93619954]
[1744894287717,0.00547479,84786.0,84785.0,0.93619954]
[1744894287941,0.00647479,84786.0,84785.0,0.93619954]
[1744894288515,0.00147479,84786.0,84785.0,0.93619954]
[1744894288720,0.00247479,84786.0,84785.0,0.93619954]
[1744894290176,0.00247479,84786.0,84785.0,0.94522055]
[1744894290758,0.00147479,84786.0,84785.0,0.94522055]
[1744894291190,0.00147479,84786.0,84785.0,0.94622055]
[1744894291589,0.00047479,84786.0,84785.0,0.94622055]
[1744894292013,0.00047479,84786.0,84785.0,0.60345264]
[1744894292204,0.00047479,84786.0,84785.0,0.14710101]
[1744894292382,0.00047479,84786.0,84785.0,0.50164186]
[1744894294624,0.00047479,84786.0,84785.0,0.73753264]
[1744894301569,0.00047479,84786.0,84785.0,0.01302101]
[1744894301943,0.00047479,84786.0,84785.0,0.24891179]
[1744894305542,0.00047479,84786.0,84785.0,0.27075471]
[1744894306818,0.00047479,84786.0,84785.0,0.24891179]
[1744894307844,0.00047479,84786.0,84785.0,0.27079485]
[1744894308834,0.00047479,84786.0,84785.0,0.24891179]
[1744894311665,0.23736279,84786.0,84785.0,0.004]
[1744894311878,0.46937958,84786.0,84785.0,0.004]
[1744894312131,0.46937958,84786.0,84750.0,0.33029197]
[1744894312132,0.01179899,84753.0,84750.0,0.33029197]
[1744894312337,0.01179996,84746.0,84743.0,0.56629752]
[1744894312533,0.23599077,84750.0,84747.0,0.2359965]
[1744894312763,0.23599133,84749.0,84747.0,0.2359965]
[1744894312942,0.01179941,84750.0,84747.0,0.2359965]
[1744894313232,0.2477832,84752.0,84748.0,0.2359912]
[1744894313434,0.2477832,84752.0,84749.0,0.23599098]
[1744894313658,0.24783636,84752.0,84750.0,0.34]
[1744894313859,0.23598541,84751.0,84750.0,0.34]
[1744894314061,0.2360049,84744.0,84741.0,0.33029197]
[1744894314222,0.0118008,84740.0,84737.0,0.0008426]
[1744894314419,0.23602161,84738.0,84737.0,0.0008426]
[1744894315512,0.28122161,84738.0,84737.0,0.0008426]
[1744894315775,0.28222161,84738.0,84737.0,0.0008426]
[1744894316305,0.23702161,84738.0,84737.0,0.0008426]
[1744894316440,0.001,84738.0,84737.0,0.0008426]
[1744894316643,0.12144791,84738.0,84737.0,0.0008426]
[1744894318709,0.002,84738.0,84737.0,0.0008426]
[1744894320240,0.002,84738.0,84737.0,0.35874356]
[1744894320438,0.002,84738.0,84737.0,0.47583136]
[1744894320842,0.001,84738.0,84737.0,0.47583136]
[1744894321045,5.316e-05,84752.0,84749.0,0.35179954]
[1744894321200,5.316e-05,84752.0,84751.0,0.35454085]
[1744894321623,5.316e-05,84752.0,84751.0,0.341]
[1744894322504,5.316e-05,84752.0,84751.0,0.343]
[1744894324220,5.316e-05,84752.0,84751.0,0.341]
[1744894324421,5.316e-05,84752.0,84751.0,0.35554085]
[1744894324575,0.00105316,84752.0,84751.0,0.35554085]
[1744894325009,5.316e-05,84752.0,84751.0,0.35554085]
[1744894325637,0.00105316,84752.0,84751.0,0.35554085]
[1744894325835,0.00105316,84752.0,84751.0,0.36444835]
[1744894326650,0.00105316,84752.0,84751.0,0.60043376]
[1744894326850,0.00205316,84752.0,84751.0,0.60043376]
[1744894330782,0.00205316,84752.0,84751.0,0.58589291]
[1744894331211,0.00205316,84752.0,84751.0,0.3499075]
[1744894331416,0.23803579,84752.0,84751.0,0.0099075]
[1744894331599,0.00205316,84752.0,84751.0,0.0099075]
[1744894331799,0.00205316,84752.0,84751.0,0.001]
[1744894332016,0.00205316,84752.0,84751.0,0.57698541]
[1744894334655,0.00205316,84752.0,84751.0,0.58582781]
[1744894335217,0.00205316,84752.0,84751.0,0.60036866]
[1744894338971,0.00205316,84752.0,84751.0,0.58582781]
[1744894339498,0.00205316,84752.0,84751.0,0.60036866]
[1744894339728,0.00205316,84752.0,84751.0,0.71981657]
[1744894340846,5.316e-05,84752.0,84751.0,0.71981657]
[1744894341179,5.316e-05,84752.0,84751.0,0.72281657]
[1744894341393,0.0004216,84786.0,84785.0,0.23589078]
[1744894341733,0.00047477,84786.0,84785.0,0.23589078]
[1744894342435,0.00047477,84786.0,84785.0,0.24787446]
[1744894343228,0.00247477,84786.0,84785.0,0.24787446]
[1744894343432,0.00647477,84786.0,84785.0,0.24787446]
[1744894344399,0.00647477,84786.0,84785.0,0.23589078]
[1744894344669,0.00647477,84786.0,84784.0,0.23589292]
[1744894344873,0.24768531,84785.0,84781.0,0.23590139]
[1744894345028,0.01179453,84785.0,84779.0,0.02348011]
[1744894345230,0.00647477,84786.0,84785.0,0.23589078]
[1744894345426,0.00647477,84786.0,84780.0,0.01179523]
[1744894345628,0.00647477,84786.0,84784.0,0.23589203]
[1744894345857,0.00647477,84786.0,84785.0,0.23589078]
[1744894346218,0.00247477,84786.0,84784.0,0.23589203]
[1744894346419,0.00247477,84786.0,84785.0,0.23589078]
[1744894346641,0.00047477,84786.0,84785.0,0.23589078]
[1744894346846,0.00247477,84786.0,84785.0,0.23589078]
[1744894347019,0.00647477,84786.0,84785.0,0.23589078]
[1744894347484,0.00447477,84786.0,84784.0,0.23589261]
[1744894347690,0.23591584,84776.0,84770.0,0.34]
[1744894348036,0.01179579,84776.0,84773.0,0.23592267]
[1744894348175,0.2359165,84776.0,84773.0,0.23592267]
[1744894348382,0.23591937,84775.0,84773.0,0.23592267]
[1744894348586,0.01179565,84777.0,84774.0,0.23591883]
[1744894348791,0.23591622,84776.0,84774.0,0.23591883]
[1744894348966,0.24770879,84777.0,84773.0,0.23592416]
[1744894349847,0.24771185,84776.0,84773.0,0.23592416]
[1744894349984,0.01179606,84774.0,84772.0,0.2359267]
[1744894350189,0.24771828,84774.0,84771.0,0.23592874]
[1744894351123,0.01179606,84774.0,84772.0,0.23592603]
[1744894352141,0.01179593,84775.0,84769.0,0.01179676]
[1744894352315,0.24771276,84776.0,84773.0,0.23592181]
[1744894352523,0.01279606,84774.0,84771.0,0.23592801]
[1744894352753,0.001,84774.0,84771.0,0.23592801]
[1744894352933,0.001,84774.0,84773.0,0.23592417]
[1744894353139,0.003,84774.0,84773.0,0.23592417]
[1744894353932,0.002,84774.0,84773.0,0.23592417]
[1744894354344,0.01179606,84774.0,84771.0,0.23592801]
[1744894354510,0.01379606,84774.0,84771.0,0.23592801]
[1744894354854,0.24971818,84774.0,84771.0,0.23592801]
[1744894355683,0.25071818,84774.0,84771.0,0.23592801]
[1744894356020,0.25071818,84774.0,84769.0,0.23593268]
[1744894356021,0.23594087,84767.0,84763.0,0.23595169]
[1744894356226,0.23593811,84768.0,84764.0,0.23594889]
[1744894356458,0.0117976,84763.0,84760.0,0.01168937]
[1744894356618,0.24774919,84764.0,84761.0,0.23595743]
[1744894357530,0.24774919,84764.0,84762.0,0.23595451]
[1744894357693,0.24874919,84764.0,84762.0,0.23595451]
[1744894357897,0.24874919,84764.0,84761.0,0.23595743]
[1744894358098,0.24974919,84764.0,84761.0,0.23595743]
[1744894358300,0.24974919,84764.0,84761.0,0.23595526]
[1744894358552,0.24775252,84762.0,84758.0,0.23596585]
[1744894358725,0.24775779,84761.0,84760.0,0.01165629]
[1744894358926,0.01179885,84754.0,84751.0,0.23698376]
[1744894359174,0.01179871,84755.0,84751.0,0.001]
[1744894359376,0.01179871,84755.0,84753.0,0.23597903]
[1744894359962,0.01179871,84755.0,84752.0,0.23598026]
[1744894360312,0.24777556,84755.0,84752.0,0.23643101]
[1744894360577,0.01179871,84755.0,84752.0,0.23643101]
[1744894361213,0.24777348,84755.0,84752.0,0.23643101]
[1744894361350,0.01179871,84755.0,84753.0,0.23597875]
[1744894362400,0.01279871,84755.0,84753.0,0.23597875]
[1744894362763,0.01179871,84755.0,84753.0,0.23597875]
[1744894362978,0.01279871,84755.0,84753.0,0.23597875]
[1744894363125,0.001,84755.0,84754.0,0.23597706]
[1744894363529,0.002,84755.0,84754.0,0.23597706]
[1744894364151,0.01179801,84760.0,84758.0,0.23596462]
[1744894364437,0.01179787,84761.0,84758.0,0.23596462]
[1744894364632,0.24775649,84761.0,84758.0,0.23596462]
[1744894365257,0.24775913,84760.0,84757.0,0.23596842]
[1744894365488,0.24775913,84760.0,84758.0,0.23596592]
[1744894365689,0.24775913,84760.0,84758.0,0.23596574]
[1744894365842,0.24775913,84760.0,84757.0,0.23596842]
[1744894366882,0.003,84760.0,84759.0,0.23596314]
[1744894367083,0.01179773,84762.0,84759.0,0.23596314]
[1744894367328,0.001,84760.0,84759.0,0.23596314]
[1744894367518,0.003,84760.0,84759.0,0.23596314]
[1744894367739,0.002,84760.0,84759.0,0.23596314]
[1744894367918,0.003,84760.0,84759.0,0.23596314]